[Event "*** Titled Tuesday Blitz"]
[Site "Chess.com"]
[Date "2020.12.01"]
[Round "9"]
[White "Shuvalov"]
[Black "sopo-tereladze"]
[Result "1-0"]
[WhiteElo "2449"]
[BlackElo "2308"]
[TimeControl "180+1"]
[EndTime "11:45:09 PST"]
[Termination "Shuvalov won on time"]

1. Nf3 {[%clk 0:02:55.5]} 1... Nf6 {[%clk 0:02:58.4]} 2. c4 {[%clk 0:02:54.7]}
2... e6 {[%clk 0:02:58]} 3. g3 {[%clk 0:02:53.2]} 3... d5 {[%clk 0:02:58.3]} 4.
Bg2 {[%clk 0:02:52.1]} 4... Be7 {[%clk 0:02:58.7]} 5. O-O {[%clk 0:02:51.3]}
5... O-O {[%clk 0:02:59]} 6. b3 {[%clk 0:02:51]} 6... dxc4 {[%clk 0:02:59.9]} 7.
bxc4 {[%clk 0:02:50.7]} 7... c5 {[%clk 0:02:59.2]} 8. d3 {[%clk 0:02:50.8]} 8...
Nc6 {[%clk 0:02:57.8]} 9. Bb2 {[%clk 0:02:50]} 9... Rb8 {[%clk 0:02:57.4]} 10.
Nc3 {[%clk 0:02:49.8]} 10... b6 {[%clk 0:02:56.8]} 11. Rb1 {[%clk 0:02:44.6]}
11... Bb7 {[%clk 0:02:57.1]} 12. e3 {[%clk 0:02:41.9]} 12... Nb4 {[%clk
0:02:53.8]} 13. d4 {[%clk 0:02:25.3]} 13... cxd4 {[%clk 0:02:50.3]} 14. exd4
{[%clk 0:02:26.2]} 14... Qc7 {[%clk 0:02:47]} 15. a3 {[%clk 0:02:20.3]} 15...
Nc6 {[%clk 0:02:42.6]} 16. d5 {[%clk 0:02:12.1]} 16... exd5 {[%clk 0:02:35.1]}
17. cxd5 {[%clk 0:02:11.8]} 17... Na5 {[%clk 0:02:34.1]} 18. Rc1 {[%clk
0:02:08]} 18... Qd8 {[%clk 0:02:25.1]} 19. Ne5 {[%clk 0:02:03.9]} 19... Bd6
{[%clk 0:02:20.1]} 20. Nc6 {[%clk 0:02:03.3]} 20... Bxc6 {[%clk 0:02:02.4]} 21.
dxc6 {[%clk 0:02:04.2]} 21... Nc4 {[%clk 0:02:01.7]} 22. Nb5 {[%clk 0:01:58.9]}
22... Nxb2 {[%clk 0:01:32.8]} 23. Qxd6 {[%clk 0:01:58.2]} 23... Qxd6 {[%clk
0:01:32.4]} 24. Nxd6 {[%clk 0:01:59.1]} 24... Ne8 {[%clk 0:01:05.7]} 25. Nxe8
{[%clk 0:01:48.6]} 25... Rbxe8 {[%clk 0:01:03.4]} 26. c7 {[%clk 0:01:48.7]}
26... Nd3 {[%clk 0:01:00.8]} 27. Rc3 {[%clk 0:01:26.5]} 27... Nc5 {[%clk
0:00:56.7]} 28. Rfc1 {[%clk 0:01:05.3]} 28... Rc8 {[%clk 0:00:54.6]} 29. Rxc5
{[%clk 0:01:05.3]} 29... bxc5 {[%clk 0:00:55.3]} 30. Rxc5 {[%clk 0:01:06.1]}
30... f6 {[%clk 0:00:50.7]} 31. Bd5+ {[%clk 0:01:04.2]} 31... Rf7 {[%clk
0:00:41.9]} 32. Rb5 {[%clk 0:00:50.8]} 32... Kf8 {[%clk 0:00:36.3]} 33. Bxf7
{[%clk 0:00:46.2]} 33... Kxf7 {[%clk 0:00:37.2]} 34. Rb7 {[%clk 0:00:45.8]}
34... a5 {[%clk 0:00:36.8]} 35. Ra7 {[%clk 0:00:44.4]} 35... Ke6 {[%clk
0:00:35.1]} 36. g4 {[%clk 0:00:42.6]} 36... Kd6 {[%clk 0:00:34.3]} 37. Kg2
{[%clk 0:00:41.5]} 37... Rxc7 {[%clk 0:00:31]} 38. Rxa5 {[%clk 0:00:40.6]} 38...
Ke6 {[%clk 0:00:27.6]} 39. h4 {[%clk 0:00:38.2]} 39... Rc4 {[%clk 0:00:20.3]}
40. Kf3 {[%clk 0:00:37.1]} 40... Kf7 {[%clk 0:00:18.9]} 41. Ra7+ {[%clk
0:00:35.4]} 41... Kg6 {[%clk 0:00:19]} 42. a4 {[%clk 0:00:34.6]} 42... Rc3+
{[%clk 0:00:17.6]} 43. Kf4 {[%clk 0:00:34]} 43... Rc4+ {[%clk 0:00:15.8]} 44.
Kg3 {[%clk 0:00:34.1]} 44... Kh6 {[%clk 0:00:16.6]} 45. a5 {[%clk 0:00:31.4]}
45... Rc3+ {[%clk 0:00:16.6]} 46. f3 {[%clk 0:00:31.1]} 46... Ra3 {[%clk
0:00:17.5]} 47. a6 {[%clk 0:00:30.7]} 47... Ra1 {[%clk 0:00:17.9]} 48. Kf4
{[%clk 0:00:30.6]} 48... Ra4+ {[%clk 0:00:16.7]} 49. Kf5 {[%clk 0:00:30.6]}
49... Ra5+ {[%clk 0:00:16.1]} 50. Ke6 {[%clk 0:00:29.7]} 50... Ra3 {[%clk
0:00:14.7]} 51. Kd6 {[%clk 0:00:26.9]} 51... Rxf3 {[%clk 0:00:13.5]} 52. Re7
{[%clk 0:00:20]} 52... Ra3 {[%clk 0:00:11.8]} 53. a7 {[%clk 0:00:20]} 53... g6
{[%clk 0:00:09.5]} 54. Ke6 {[%clk 0:00:16]} 54... Ra6+ {[%clk 0:00:08.6]} 55.
Kf7 {[%clk 0:00:12.1]} 55... g5 {[%clk 0:00:07.5]} 56. h5 {[%clk 0:00:11.6]}
56... Ra5 {[%clk 0:00:04.9]} 57. Kxf6 {[%clk 0:00:11.1]} 57... Ra6+ {[%clk
0:00:05.8]} 58. Kf7 {[%clk 0:00:11]} 58... Rxa7 {[%clk 0:00:03.8]} 59. Kf6
{[%clk 0:00:08.5]} 59... Ra6+ {[%clk 0:00:03]} 60. Re6 {[%clk 0:00:07.3]} 60...
Ra7 {[%clk 0:00:01.4]} 61. Kf5+ {[%clk 0:00:05.7]} 61... Kg7 {[%clk 0:00:02.3]}
62. h6+ {[%clk 0:00:05.5]} 62... Kf7 {[%clk 0:00:01.1]} 63. Rf6+ {[%clk
0:00:05.4]} 1-0

[Event "*** Titled Tuesday Blitz"]
[Site "Chess.com"]
[Date "2020.12.01"]
[Round "9"]
[White "Matols"]
[Black "Dreamer_01"]
[Result "0-1"]
[WhiteElo "2221"]
[BlackElo "2361"]
[TimeControl "180+1"]
[EndTime "11:45:09 PST"]
[Termination "Dreamer_01 won on time"]

1. d4 {[%clk 0:03:00.9]} 1... d5 {[%clk 0:02:59.1]} 2. c4 {[%clk 0:03:00.9]}
2... c6 {[%clk 0:02:58.9]} 3. Nf3 {[%clk 0:03:00.7]} 3... Nf6 {[%clk 0:02:58.3]}
4. e3 {[%clk 0:03:00.6]} 4... a6 {[%clk 0:02:56]} 5. Nbd2 {[%clk 0:02:59.7]}
5... g6 {[%clk 0:02:47.1]} 6. Bd3 {[%clk 0:02:58.2]} 6... Bg7 {[%clk 0:02:46.7]}
7. O-O {[%clk 0:02:57.6]} 7... O-O {[%clk 0:02:46.4]} 8. b3 {[%clk 0:02:49]}
8... Nbd7 {[%clk 0:02:37]} 9. Bb2 {[%clk 0:02:45]} 9... b5 {[%clk 0:02:36.5]}
10. cxd5 {[%clk 0:02:43.1]} 10... cxd5 {[%clk 0:02:36.1]} 11. Rc1 {[%clk
0:02:42.2]} 11... Bb7 {[%clk 0:02:33.5]} 12. Ne5 {[%clk 0:02:40.8]} 12... Nxe5
{[%clk 0:02:28.5]} 13. dxe5 {[%clk 0:02:40.2]} 13... Nd7 {[%clk 0:02:28.3]} 14.
f4 {[%clk 0:02:38.5]} 14... e6 {[%clk 0:02:26.2]} 15. Nf3 {[%clk 0:02:25.6]}
15... Qe7 {[%clk 0:02:19.8]} 16. Bd4 {[%clk 0:02:17.9]} 16... Rfc8 {[%clk
0:02:18.3]} 17. Qd2 {[%clk 0:02:11.9]} 17... Bf8 {[%clk 0:02:10.5]} 18. Ng5
{[%clk 0:02:09.5]} 18... Qb4 {[%clk 0:02:06]} 19. Qf2 {[%clk 0:02:04.3]} 19...
h6 {[%clk 0:02:03]} 20. Nf3 {[%clk 0:02:02.7]} 20... Be7 {[%clk 0:01:47.3]} 21.
Qg3 {[%clk 0:01:59.5]} 21... Nf8 {[%clk 0:01:44.2]} 22. h4 {[%clk 0:01:55]}
22... h5 {[%clk 0:01:40.2]} 23. Ng5 {[%clk 0:01:45.3]} 23... Rxc1 {[%clk
0:01:38.6]} 24. Rxc1 {[%clk 0:01:44.6]} 24... Qd2 {[%clk 0:01:38.4]} 25. Rc7
{[%clk 0:01:34.4]} 25... Bxg5 {[%clk 0:01:27.7]} 26. Qxg5 {[%clk 0:01:30.6]}
26... Qxd3 {[%clk 0:01:26.4]} 27. Rxb7 {[%clk 0:01:20.5]} 27... Rc8 {[%clk
0:01:23.8]} 28. Qe7 {[%clk 0:01:06.3]} 28... Rc1+ {[%clk 0:01:21.2]} 29. Kh2
{[%clk 0:01:05.6]} 29... Qf5 {[%clk 0:01:21.3]} 30. Bc5 {[%clk 0:01:00]} 30...
Nh7 {[%clk 0:01:08.8]} 31. Rb8+ {[%clk 0:00:58]} 31... Kg7 {[%clk 0:01:08.8]}
32. Rb7 {[%clk 0:00:35.6]} 32... Rxc5 {[%clk 0:00:51.4]} 33. Qxc5 {[%clk
0:00:34.8]} 33... d4 {[%clk 0:00:51.8]} 34. Qxd4 {[%clk 0:00:31]} 34... Qg4
{[%clk 0:00:51.9]} 35. Qd2 {[%clk 0:00:21.1]} 35... Qxh4+ {[%clk 0:00:51.6]} 36.
Kg1 {[%clk 0:00:21]} 36... g5 {[%clk 0:00:51.9]} 37. Qf2 {[%clk 0:00:19.7]}
37... Qg4 {[%clk 0:00:50.5]} 38. fxg5 {[%clk 0:00:15.9]} 38... Nxg5 {[%clk
0:00:50.1]} 39. Qf6+ {[%clk 0:00:15.6]} 39... Kh7 {[%clk 0:00:50.4]} 40. Qf2
{[%clk 0:00:13.5]} 40... Qe4 {[%clk 0:00:32.2]} 41. Rc7 {[%clk 0:00:09.6]} 41...
Qxe5 {[%clk 0:00:29.3]} 42. Rc1 {[%clk 0:00:08.3]} 42... Kg7 {[%clk 0:00:27.9]}
43. Rf1 {[%clk 0:00:07.9]} 43... f6 {[%clk 0:00:25.9]} 44. Qf4 {[%clk
0:00:07.8]} 44... Qc3 {[%clk 0:00:22.9]} 45. Rf2 {[%clk 0:00:05.2]} 45... Kg6
{[%clk 0:00:20.7]} 46. Kh2 {[%clk 0:00:04.9]} 46... Nh7 {[%clk 0:00:16.9]} 47.
Qe4+ {[%clk 0:00:04.2]} 47... Kg7 {[%clk 0:00:14.8]} 48. Qxe6 {[%clk 0:00:04.4]}
48... Qd3 {[%clk 0:00:12.4]} 49. Qe7+ {[%clk 0:00:04.5]} 49... Kg6 {[%clk
0:00:12.2]} 50. Qe8+ {[%clk 0:00:04.9]} 50... Kg7 {[%clk 0:00:12.2]} 51. Qe7+
{[%clk 0:00:05.2]} 51... Kg6 {[%clk 0:00:11.8]} 52. e4 {[%clk 0:00:05.2]} 52...
Qd4 {[%clk 0:00:09.9]} 53. Qe8+ {[%clk 0:00:05.2]} 53... Kg7 {[%clk 0:00:09.9]}
54. Qe7+ {[%clk 0:00:05.4]} 54... Kg6 {[%clk 0:00:10.2]} 55. Rf3 {[%clk
0:00:05]} 55... Ng5 {[%clk 0:00:10]} 56. Rg3 {[%clk 0:00:04.7]} 56... h4 {[%clk
0:00:09.5]} 57. Rg4 {[%clk 0:00:03.1]} 57... Kh5 {[%clk 0:00:09.7]} 58. Rxg5+
{[%clk 0:00:01.8]} 58... Kxg5 {[%clk 0:00:09.4]} 59. Qg7+ {[%clk 0:00:01.7]}
59... Kf4 {[%clk 0:00:08.8]} 60. Qh6+ {[%clk 0:00:01.9]} 60... Ke5 {[%clk
0:00:08.3]} 61. Qxh4 {[%clk 0:00:01.1]} 61... Qxe4 {[%clk 0:00:08.3]} 62. Qh5+
{[%clk 0:00:01.5]} 62... Kd4 {[%clk 0:00:06.2]} 0-1

[Event "*** Titled Tuesday Blitz"]
[Site "Chess.com"]
[Date "2020.12.01"]
[Round "9"]
[White "karinachess1"]
[Black "Gloomy_Wanderer"]
[Result "0-1"]
[WhiteElo "2500"]
[BlackElo "2711"]
[TimeControl "180+1"]
[EndTime "11:45:15 PST"]
[Termination "Gloomy_Wanderer won on time"]

1. e4 {[%clk 0:03:00.9]} 1... c5 {[%clk 0:02:58.9]} 2. Nf3 {[%clk 0:02:59.1]}
2... a6 {[%clk 0:02:59]} 3. c4 {[%clk 0:02:56]} 3... Nc6 {[%clk 0:02:58.8]} 4.
d4 {[%clk 0:02:54.3]} 4... cxd4 {[%clk 0:02:59]} 5. Nxd4 {[%clk 0:02:55.2]} 5...
e5 {[%clk 0:02:58.6]} 6. Nf5 {[%clk 0:02:52.1]} 6... d6 {[%clk 0:02:58.6]} 7.
Ne3 {[%clk 0:02:42]} 7... g6 {[%clk 0:02:54.7]} 8. Nc3 {[%clk 0:02:38.3]} 8...
Bh6 {[%clk 0:02:54.3]} 9. Ned5 {[%clk 0:02:18]} 9... Bxc1 {[%clk 0:02:49.5]} 10.
Rxc1 {[%clk 0:02:17.6]} 10... Be6 {[%clk 0:02:49.6]} 11. Bd3 {[%clk 0:02:10]}
11... Nf6 {[%clk 0:02:49.2]} 12. O-O {[%clk 0:01:57.7]} 12... O-O {[%clk
0:02:48.9]} 13. f4 {[%clk 0:01:47.3]} 13... exf4 {[%clk 0:02:35.3]} 14. Rxf4
{[%clk 0:01:26.8]} 14... Bxd5 {[%clk 0:02:32.6]} 15. exd5 {[%clk 0:01:27.7]}
15... Ne5 {[%clk 0:02:32.3]} 16. Be2 {[%clk 0:01:25.7]} 16... Nfd7 {[%clk
0:02:25.3]} 17. b3 {[%clk 0:01:20.6]} 17... f5 {[%clk 0:02:23.6]} 18. Rf1 {[%clk
0:01:16.7]} 18... Qg5 {[%clk 0:02:20.5]} 19. Qd4 {[%clk 0:01:12.9]} 19... Rae8
{[%clk 0:02:18.8]} 20. Rce1 {[%clk 0:01:11.3]} 20... Nf7 {[%clk 0:02:14.7]} 21.
Bf3 {[%clk 0:01:05.8]} 21... Rxe1 {[%clk 0:01:49.8]} 22. Rxe1 {[%clk 0:01:06.7]}
22... Nfe5 {[%clk 0:01:50.2]} 23. Rf1 {[%clk 0:00:59.8]} 23... Re8 {[%clk
0:01:42.1]} 24. Bd1 {[%clk 0:00:56]} 24... Nf7 {[%clk 0:01:38]} 25. Ne2 {[%clk
0:00:50.7]} 25... a5 {[%clk 0:01:19.7]} 26. Nf4 {[%clk 0:00:49.7]} 26... Re4
{[%clk 0:01:15.2]} 27. Qf2 {[%clk 0:00:48.6]} 27... Nc5 {[%clk 0:01:08.3]} 28.
Bc2 {[%clk 0:00:40.8]} 28... Re7 {[%clk 0:01:07.5]} 29. a3 {[%clk 0:00:38.5]}
29... Ne5 {[%clk 0:00:58.4]} 30. b4 {[%clk 0:00:36.1]} 30... Ng4 {[%clk
0:00:54.4]} 31. Qd2 {[%clk 0:00:22.7]} 31... axb4 {[%clk 0:00:46.6]} 32. axb4
{[%clk 0:00:22.1]} 32... Ne4 {[%clk 0:00:44.9]} 33. Qd4 {[%clk 0:00:17.5]} 33...
Qh4 {[%clk 0:00:35.1]} 34. h3 {[%clk 0:00:15.5]} 34... Ng3 {[%clk 0:00:27.7]}
35. hxg4 {[%clk 0:00:09.1]} 35... Nxf1 {[%clk 0:00:21.8]} 36. Ne6 {[%clk
0:00:09.3]} 36... Qe1 {[%clk 0:00:18.1]} 37. Qf2 {[%clk 0:00:07.7]} 37... Qxf2+
{[%clk 0:00:14.1]} 38. Kxf2 {[%clk 0:00:08.6]} 38... Nd2 {[%clk 0:00:14.7]} 39.
gxf5 {[%clk 0:00:08.2]} 39... gxf5 {[%clk 0:00:14.1]} 40. c5 {[%clk 0:00:08.5]}
40... Nc4 {[%clk 0:00:10.5]} 41. Bb3 {[%clk 0:00:07.1]} 41... Ne5 {[%clk
0:00:09.1]} 42. cxd6 {[%clk 0:00:06.3]} 42... Rd7 {[%clk 0:00:08.7]} 43. Nc5
{[%clk 0:00:07]} 43... Rxd6 {[%clk 0:00:08.9]} 44. Nxb7 {[%clk 0:00:07.4]} 44...
Rb6 {[%clk 0:00:09.3]} 45. d6+ {[%clk 0:00:06.2]} 45... Kf8 {[%clk 0:00:09.6]}
46. Nc5 {[%clk 0:00:05.3]} 46... Rxd6 {[%clk 0:00:09.3]} 47. Be6 {[%clk
0:00:04.2]} 47... Nd3+ {[%clk 0:00:08.1]} 48. Nxd3 {[%clk 0:00:04.1]} 48... Rxe6
{[%clk 0:00:08.8]} 49. Kf3 {[%clk 0:00:04.6]} 49... Kf7 {[%clk 0:00:08.2]} 50.
Nf4 {[%clk 0:00:03.9]} 50... Re4 {[%clk 0:00:06.6]} 51. Nd3 {[%clk 0:00:04.2]}
51... Kf6 {[%clk 0:00:06.5]} 52. b5 {[%clk 0:00:04.2]} 52... Rd4 {[%clk
0:00:05.4]} 53. Ke3 {[%clk 0:00:03.7]} 53... Rd5 {[%clk 0:00:05.6]} 54. b6
{[%clk 0:00:02.8]} 54... Rb5 {[%clk 0:00:06.1]} 55. Nf4 {[%clk 0:00:02.6]} 55...
Ke5 {[%clk 0:00:04.3]} 56. Nd3+ {[%clk 0:00:02.9]} 56... Kd6 {[%clk 0:00:03.6]}
57. Kf4 {[%clk 0:00:02.5]} 57... Ke6 {[%clk 0:00:03.3]} 58. b7 {[%clk
0:00:01.6]} 58... Kf6 {[%clk 0:00:02.2]} 59. Nc5 {[%clk 0:00:01.7]} 59... Rb4+
{[%clk 0:00:02.5]} 60. Ke3 {[%clk 0:00:02]} 60... Kg5 {[%clk 0:00:01.8]} 61. Kf3
{[%clk 0:00:02.4]} 61... h5 {[%clk 0:00:01.5]} 62. Kf2 {[%clk 0:00:02.7]} 62...
Kg4 {[%clk 0:00:01.5]} 63. Ke2 {[%clk 0:00:01.3]} 63... Rb2+ {[%clk 0:00:01.7]}
64. Kf1 {[%clk 0:00:01.4]} 64... Kg3 {[%clk 0:00:01.8]} 0-1

[Event "*** Titled Tuesday Blitz"]
[Site "Chess.com"]
[Date "2020.12.01"]
[Round "9"]
[White "DrMamaliga"]
[Black "Jungle_Jaguar"]
[Result "0-1"]
[WhiteElo "2347"]
[BlackElo "2537"]
[TimeControl "180+1"]
[EndTime "11:45:16 PST"]
[Termination "Jungle_Jaguar won by resignation"]

1. c4 {[%clk 0:03:00.2]} 1... Nf6 {[%clk 0:02:56.9]} 2. Nf3 {[%clk 0:02:59.9]}
2... g6 {[%clk 0:02:57.2]} 3. b3 {[%clk 0:03:00]} 3... Bg7 {[%clk 0:02:57.4]} 4.
Bb2 {[%clk 0:03:00.9]} 4... O-O {[%clk 0:02:58]} 5. g3 {[%clk 0:03:01.3]} 5...
d6 {[%clk 0:02:58.5]} 6. Bg2 {[%clk 0:03:01.8]} 6... e5 {[%clk 0:02:59]} 7. O-O
{[%clk 0:03:02.5]} 7... Nc6 {[%clk 0:02:59.1]} 8. e3 {[%clk 0:03:03.1]} 8... Bg4
{[%clk 0:02:53.2]} 9. h3 {[%clk 0:02:58.7]} 9... Bd7 {[%clk 0:02:47.9]} 10. d4
{[%clk 0:02:56.1]} 10... Re8 {[%clk 0:02:41.5]} 11. Nc3 {[%clk 0:02:51.5]} 11...
Qe7 {[%clk 0:02:18.9]} 12. Qc2 {[%clk 0:02:48.8]} 12... exd4 {[%clk 0:02:14]}
13. Nxd4 {[%clk 0:02:48.4]} 13... Nxd4 {[%clk 0:02:11]} 14. exd4 {[%clk
0:02:49.3]} 14... Bf5 {[%clk 0:02:10.5]} 15. Qd2 {[%clk 0:02:47.8]} 15... h5
{[%clk 0:02:08.1]} 16. Rae1 {[%clk 0:02:46.8]} 16... Qd7 {[%clk 0:02:08]} 17.
Bxb7 {[%clk 0:02:43.5]} 17... Rab8 {[%clk 0:01:53.1]} 18. Bg2 {[%clk 0:02:43.3]}
18... Bxh3 {[%clk 0:01:52.4]} 19. Qf4 {[%clk 0:02:34.2]} 19... Bxg2 {[%clk
0:01:41.5]} 20. Kxg2 {[%clk 0:02:35.1]} 20... d5 {[%clk 0:01:41.7]} 21. c5
{[%clk 0:02:29.2]} 21... Re6 {[%clk 0:01:31.3]} 22. Rxe6 {[%clk 0:02:23.9]}
22... Qxe6 {[%clk 0:01:32.2]} 23. Qxc7 {[%clk 0:02:23.7]} 23... Re8 {[%clk
0:01:27.3]} 24. b4 {[%clk 0:02:15]} 24... Ng4 {[%clk 0:01:24.7]} 25. Nd1 {[%clk
0:01:46.5]} 25... Qe4+ {[%clk 0:01:09.2]} 26. Kg1 {[%clk 0:01:41.2]} 26... Bxd4
{[%clk 0:01:09]} 27. Bxd4 {[%clk 0:01:37.9]} 27... Qxd4 {[%clk 0:01:09.9]} 28.
Qd7 {[%clk 0:01:38.1]} 28... Re2 {[%clk 0:00:53.7]} 29. c6 {[%clk 0:01:34.6]}
29... Rc2 {[%clk 0:00:52.7]} 30. c7 {[%clk 0:01:32.8]} 30... Qc4 {[%clk
0:00:42.1]} 31. f3 {[%clk 0:00:34]} 31... Nf6 {[%clk 0:00:22.4]} 32. Qd8+ {[%clk
0:00:32.5]} 32... Kg7 {[%clk 0:00:22.9]} 33. Ne3 {[%clk 0:00:28.8]} 33... Qxc7
{[%clk 0:00:22.9]} 34. Qxf6+ {[%clk 0:00:23.7]} 34... Kxf6 {[%clk 0:00:23.8]}
35. Nxd5+ {[%clk 0:00:24.6]} 35... Ke5 {[%clk 0:00:24.5]} 36. Nxc7 {[%clk
0:00:25.5]} 36... Rxc7 {[%clk 0:00:25.2]} 37. Re1+ {[%clk 0:00:24.9]} 37... Kd5
{[%clk 0:00:24.1]} 38. Rd1+ {[%clk 0:00:23]} 38... Ke5 {[%clk 0:00:20.5]} 39.
Rd2 {[%clk 0:00:20.2]} 39... Rc4 {[%clk 0:00:15]} 40. Rb2 {[%clk 0:00:19.7]}
40... h4 {[%clk 0:00:11.3]} 41. gxh4 {[%clk 0:00:18.6]} 41... Rc3 {[%clk
0:00:10.7]} 42. Kf2 {[%clk 0:00:17.1]} 42... Kf4 {[%clk 0:00:10.9]} 43. b5
{[%clk 0:00:14]} 43... Rxf3+ {[%clk 0:00:10.8]} 44. Kg2 {[%clk 0:00:13.5]} 44...
Ra3 {[%clk 0:00:10.9]} 45. Kf2 {[%clk 0:00:07.3]} 45... Kg4 {[%clk 0:00:10.4]}
46. Rb4+ {[%clk 0:00:07.8]} 46... Kh5 {[%clk 0:00:10]} 47. b6 {[%clk 0:00:03.7]}
47... Rxa2+ {[%clk 0:00:09.2]} 48. Kg3 {[%clk 0:00:03.5]} 48... axb6 {[%clk
0:00:09.3]} 49. Rxb6 {[%clk 0:00:03.5]} 49... Ra3+ {[%clk 0:00:09.9]} 50. Kf4
{[%clk 0:00:02.7]} 50... Ra4+ {[%clk 0:00:10.1]} 51. Kg3 {[%clk 0:00:02.5]}
51... Rg4+ {[%clk 0:00:07.2]} 52. Kf3 {[%clk 0:00:01.8]} 52... f5 {[%clk
0:00:06.1]} 53. Rf6 {[%clk 0:00:02.7]} 53... Rxh4 {[%clk 0:00:05.5]} 54. Rf8
{[%clk 0:00:02.5]} 54... Kg5 {[%clk 0:00:06]} 55. Rg8 {[%clk 0:00:02.2]} 55...
Rf4+ {[%clk 0:00:06.5]} 56. Kg3 {[%clk 0:00:01.9]} 56... Ra4 {[%clk 0:00:07.4]}
57. Kh3 {[%clk 0:00:02.8]} 57... Ra3+ {[%clk 0:00:07.8]} 58. Kg2 {[%clk
0:00:03.4]} 58... Kh5 {[%clk 0:00:08.5]} 59. Rb8 {[%clk 0:00:04.1]} 59... Kg4
{[%clk 0:00:08.2]} 60. Rb4+ {[%clk 0:00:04.5]} 60... f4 {[%clk 0:00:07.9]} 61.
Rb6 {[%clk 0:00:05.4]} 61... g5 {[%clk 0:00:08.3]} 62. Rc6 {[%clk 0:00:05]}
62... Ra2+ {[%clk 0:00:08.3]} 63. Kg1 {[%clk 0:00:05.1]} 63... Kg3 {[%clk
0:00:07.6]} 64. Rc3+ {[%clk 0:00:05.4]} 64... f3 {[%clk 0:00:07.9]} 65. Rc1
{[%clk 0:00:06.3]} 65... Rg2+ {[%clk 0:00:07]} 66. Kh1 {[%clk 0:00:06.4]} 66...
Rh2+ {[%clk 0:00:07]} 67. Kg1 {[%clk 0:00:06.3]} 67... f2+ {[%clk 0:00:07.6]}
68. Kf1 {[%clk 0:00:06.3]} 68... Rh1+ {[%clk 0:00:08.5]} 69. Ke2 {[%clk
0:00:06.8]} 69... Rxc1 {[%clk 0:00:09.4]} 0-1

[Event "*** Titled Tuesday Blitz"]
[Site "Chess.com"]
[Date "2020.12.01"]
[Round "9"]
[White "mr65"]
[Black "RamyresCoelho"]
[Result "1-0"]
[WhiteElo "2184"]
[BlackElo "2079"]
[TimeControl "180+1"]
[EndTime "11:45:20 PST"]
[Termination "mr65 won by checkmate"]

1. e4 {[%clk 0:03:00.9]} 1... c5 {[%clk 0:02:59.8]} 2. d4 {[%clk 0:03:00.6]}
2... cxd4 {[%clk 0:02:59.4]} 3. c3 {[%clk 0:03:00.8]} 3... d3 {[%clk 0:03:00.3]}
4. c4 {[%clk 0:02:59.6]} 4... Nc6 {[%clk 0:03:00.1]} 5. Nc3 {[%clk 0:02:59.5]}
5... e5 {[%clk 0:02:59.8]} 6. Bxd3 {[%clk 0:02:59.3]} 6... Bc5 {[%clk
0:02:59.9]} 7. Nge2 {[%clk 0:02:58.6]} 7... Nf6 {[%clk 0:02:56.6]} 8. O-O {[%clk
0:02:55.7]} 8... O-O {[%clk 0:02:56.8]} 9. Bg5 {[%clk 0:02:54.6]} 9... h6 {[%clk
0:02:55.7]} 10. Bh4 {[%clk 0:02:48]} 10... Be7 {[%clk 0:02:55.8]} 11. Kh1 {[%clk
0:02:44.4]} 11... d6 {[%clk 0:02:54]} 12. Nd5 {[%clk 0:02:35.6]} 12... Nxd5
{[%clk 0:02:52.6]} 13. cxd5 {[%clk 0:02:35.1]} 13... Bxh4 {[%clk 0:02:51.1]} 14.
dxc6 {[%clk 0:02:34.6]} 14... bxc6 {[%clk 0:02:52]} 15. f4 {[%clk 0:02:30.1]}
15... exf4 {[%clk 0:02:49.8]} 16. Nxf4 {[%clk 0:02:28.8]} 16... Bf6 {[%clk
0:02:47.7]} 17. Qc2 {[%clk 0:02:19.1]} 17... Qb6 {[%clk 0:02:42.8]} 18. Rab1
{[%clk 0:02:14.4]} 18... Rb8 {[%clk 0:02:38]} 19. b3 {[%clk 0:02:13]} 19... a5
{[%clk 0:02:28.9]} 20. Bc4 {[%clk 0:02:09.7]} 20... Bd7 {[%clk 0:02:14.9]} 21.
Rf3 {[%clk 0:01:59.7]} 21... a4 {[%clk 0:02:12.1]} 22. Rbf1 {[%clk 0:01:57.8]}
22... axb3 {[%clk 0:02:11.2]} 23. Bxb3 {[%clk 0:01:45.4]} 23... Qb5 {[%clk
0:01:59.1]} 24. Ng6 {[%clk 0:01:38.2]} 24... Rfe8 {[%clk 0:01:38.7]} 25. Qf2
{[%clk 0:01:37.9]} 25... d5 {[%clk 0:01:24.5]} 26. Rxf6 {[%clk 0:01:33]} 26...
fxg6 {[%clk 0:01:15.4]} 27. exd5 {[%clk 0:01:23.1]} 27... gxf6 {[%clk
0:00:46.9]} 28. Qxf6 {[%clk 0:01:20.1]} 28... Qxf1+ {[%clk 0:00:46.8]} 29. Qxf1
{[%clk 0:01:16.5]} 29... cxd5 {[%clk 0:00:41.4]} 30. Bxd5+ {[%clk 0:01:14.5]}
30... Be6 {[%clk 0:00:41.7]} 31. Bxe6+ {[%clk 0:01:11.4]} 31... Rxe6 {[%clk
0:00:42.6]} 32. h3 {[%clk 0:01:10.7]} 32... Rb2 {[%clk 0:00:39.8]} 33. Qc4
{[%clk 0:01:07.2]} 33... Re2 {[%clk 0:00:33.4]} 34. a4 {[%clk 0:01:03.8]} 34...
Re4 {[%clk 0:00:33.1]} 35. Qc7 {[%clk 0:00:23]} 35... Re7 {[%clk 0:00:32.5]} 36.
Qb8+ {[%clk 0:00:20]} 36... Kf7 {[%clk 0:00:32]} 37. a5 {[%clk 0:00:18.8]} 37...
Re8 {[%clk 0:00:31.7]} 38. Qb7+ {[%clk 0:00:17.7]} 38... R8e7 {[%clk 0:00:30.5]}
39. Qd5+ {[%clk 0:00:17.5]} 39... Kf6 {[%clk 0:00:27]} 40. a6 {[%clk 0:00:16.4]}
40... Re1+ {[%clk 0:00:24.6]} 41. Kh2 {[%clk 0:00:15.4]} 41... R1e6 {[%clk
0:00:20]} 42. a7 {[%clk 0:00:14.2]} 42... Ra6 {[%clk 0:00:13.4]} 43. Qd4+ {[%clk
0:00:13.8]} 43... Re5 {[%clk 0:00:07.8]} 44. Qd8+ {[%clk 0:00:11.5]} 44... Re7
{[%clk 0:00:07.2]} 45. a8=Q {[%clk 0:00:11]} 45... Rxa8 {[%clk 0:00:07.2]} 46.
Qxa8 {[%clk 0:00:10.9]} 46... Kf7 {[%clk 0:00:07.1]} 47. Qf3+ {[%clk 0:00:10.6]}
47... Kg7 {[%clk 0:00:07.2]} 48. h4 {[%clk 0:00:10.8]} 48... Rf7 {[%clk
0:00:08.1]} 49. Kg3 {[%clk 0:00:10.1]} 49... Kf8 {[%clk 0:00:08.3]} 50. Qc6
{[%clk 0:00:09.1]} 50... Kg7 {[%clk 0:00:08.6]} 51. Qc3+ {[%clk 0:00:09]} 51...
Kh7 {[%clk 0:00:08.6]} 52. Kg4 {[%clk 0:00:09.1]} 52... Kg8 {[%clk 0:00:07.4]}
53. g3 {[%clk 0:00:09.1]} 53... Kh7 {[%clk 0:00:07.9]} 54. h5 {[%clk 0:00:08.9]}
54... gxh5+ {[%clk 0:00:07.6]} 55. Kxh5 {[%clk 0:00:09]} 55... Rf5+ {[%clk
0:00:08.3]} 56. Kg4 {[%clk 0:00:08.8]} 56... Rg5+ {[%clk 0:00:08.6]} 57. Kh4
{[%clk 0:00:08.6]} 57... Kg6 {[%clk 0:00:09.5]} 58. g4 {[%clk 0:00:08.6]} 58...
Kh7 {[%clk 0:00:04.3]} 59. Qc6 {[%clk 0:00:09]} 59... Rg6 {[%clk 0:00:03.1]} 60.
Qd7+ {[%clk 0:00:08.6]} 60... Rg7 {[%clk 0:00:03.7]} 61. Qf5+ {[%clk 0:00:07.8]}
61... Kh8 {[%clk 0:00:04]} 62. Qf8+ {[%clk 0:00:07.2]} 62... Kh7 {[%clk
0:00:04.1]} 63. Kh5 {[%clk 0:00:07.3]} 63... Rg5+ {[%clk 0:00:03.9]} 64. Kh4
{[%clk 0:00:07.5]} 64... Rg8 {[%clk 0:00:04.6]} 65. Qf5+ {[%clk 0:00:07.3]}
65... Rg6 {[%clk 0:00:04.7]} 66. Kh5 {[%clk 0:00:07]} 66... Kh8 {[%clk
0:00:04.6]} 67. Kxg6 {[%clk 0:00:06.6]} 67... Kg8 {[%clk 0:00:04.6]} 68. Qf7+
{[%clk 0:00:06.7]} 68... Kh8 {[%clk 0:00:04.8]} 69. Qh7# {[%clk 0:00:06.6]} 1-0